bitfinex/quotes_SOLUSD_20241113
["timestamp","ask_amount","ask_price","bid_price","bid_amount"]
[1731458617230,15.2135,212.58,212.52,37.96404409]
[1731458617385,6.4517,212.6,212.52,37.96404409]
[1731458618001,38.08953409,212.59,212.5,37.96404409]
[1731458618518,38.08953409,212.59,212.52,37.96404409]
[1731458618803,23.4753941,212.59,212.51,23.3499041]
[1731458619383,23.4753941,212.59,212.5,11.7645]
[1731458619384,23.3499041,212.57,212.5,11.7645]
[1731458619582,23.776884,212.58,212.42,23.61742722]
[1731458619583,23.3499041,212.55,212.47,28.0563041]
[1731458619779,23.3499041,212.55,212.47,23.3499041]
[1731458619996,23.3499041,212.55,212.47,28.0563041]
[1731458620207,23.3499041,212.59,212.51,23.3499041]
[1731458620388,28.0538041,212.59,212.51,23.3499041]
[1731458621507,23.3499041,212.57,212.5,4.7057]
[1731458621986,23.3499041,212.57,212.5,16.4704]
[1731458623090,23.902374,212.58,212.51,23.3499041]
[1731458623288,28.606574,212.58,212.51,23.3499041]
[1731458623486,23.902374,212.56,212.47,23.3499041]
[1731458623829,23.3499041,212.55,212.47,23.3499041]
[1731458624317,23.3499041,212.53,212.45,23.3499041]
[1731458625207,28.0551041,212.53,212.46,4.7067]
[1731458625514,23.3499041,212.51,212.43,35.1184041]
[1731458625813,23.3499041,212.49,212.41,28.0576041]
[1731458626014,23.3499041,212.49,212.34,23.3499041]
[1731458626015,23.3499041,212.42,212.34,23.3499041]
[1731458626218,23.3499041,212.44,212.36,23.3499041]
[1731458626428,23.3499041,212.46,212.38,23.3499041]
[1731458627106,28.0567041,212.46,212.39,4.7083]
[1731458627300,28.0567041,212.46,212.38,23.3499041]
[1731458627609,28.0567041,212.46,212.38,28.0583041]
[1731458627916,28.0567041,212.46,212.38,39.8296041]
[1731458629895,6.4262,212.49,212.42,23.3499041]
[1731458630112,6.4262,212.49,212.44,23.3499041]
[1731458630301,6.4262,212.49,212.46,23.3499041]
[1731458631112,6.4262,212.49,212.44,23.3499041]
[1731458631315,6.4262,212.49,212.38,23.5427]
[1731458631316,23.3499041,212.46,212.36,20.0]
[1731458631508,38.6700041,212.52,212.45,23.3499041]
[1731458631509,4.7054,212.52,212.45,23.3499041]
[1731458631710,28.0548041,212.55,212.47,23.3499041]
[1731458632015,6.1429,212.58,212.53,23.3499041]
[1731458632317,6.1429,212.58,212.45,0.07922722]
[1731458632318,0.1,212.94,212.71,0.12549]
[1731458632533,0.4622359,212.97,212.8,0.07922722]
[1731458632814,0.4622359,212.97,212.81,20.0]
[1731458633225,0.4622359,212.97,212.83,20.0]
[1731458633523,0.4622359,212.97,212.9,23.3499041]
[1731458633702,0.4622359,212.97,212.92,23.3499041]
[1731458634014,0.12549,212.96,212.92,23.3499041]
[1731458634209,28.50764,212.97,212.88,23.3499041]
[1731458634416,28.50764,212.97,212.9,23.3499041]
[1731458634805,5.1577359,212.97,212.9,37.80769462]
[1731458635007,37.80769462,212.96,212.88,37.80769462]
[1731458635617,4.6959,212.95,212.88,37.80769462]
[1731458636626,23.776884,212.94,212.9,37.80769462]
[1731458638111,0.4622359,212.97,212.92,37.80769462]
[1731458639811,4.82119,212.96,212.92,37.80769462]
[1731458640833,23.776884,212.95,212.9,37.80769462]
[1731458641130,23.776884,212.95,212.86,11.7448]
[1731458641131,37.93318462,212.94,212.86,37.80769462]
[1731458641332,23.902374,212.92,212.85,37.80769462]
[1731458641521,23.902374,212.92,212.86,37.80769462]
[1731458641837,0.12549,212.92,212.86,37.80769462]
[1731458642015,37.93318462,212.92,212.85,37.80769462]
[1731458642338,0.12549,212.9,212.85,37.80769462]
[1731458642643,0.12549,212.88,212.84,37.80769462]
[1731458642842,23.776884,212.89,212.84,37.80769462]
[1731458643136,23.776884,212.89,212.76,4.7001]
[1731458643137,23.776884,212.89,212.86,37.80769462]
[1731458643311,0.12549,212.88,212.84,37.80769462]
[1731458643510,0.12549,212.88,212.82,37.80769462]
[1731458644624,23.902374,212.86,212.82,37.80769462]
[1731458645119,37.80769462,212.91,212.84,37.80769462]
[1731458645315,23.776884,212.88,212.85,37.80769462]
[1731458645520,0.12549,212.87,212.85,37.80769462]
[1731458645720,0.12549,212.87,212.84,37.80769462]
[1731458646330,23.776884,212.93,212.86,37.80769462]
[1731458646529,23.776884,212.94,212.88,37.80769462]
[1731458646725,28.472984,212.94,212.89,37.80769462]
[1731458646928,4.6961,212.94,212.88,37.80769462]
[1731458647320,0.12549,212.93,212.87,37.80769462]
[1731458647823,0.12549,212.89,212.83,37.80769462]
[1731458648021,0.12549,212.88,212.81,37.80769462]
[1731458648220,4.6954,213.08,212.86,0.07918583]
[1731458648421,4.6941,213.04,212.96,75.61538924]
[1731458648729,0.04888934,212.97,212.96,37.80769462]
[1731458652428,0.04888934,212.97,212.94,37.80769462]
[1731458652627,0.04888934,212.97,212.93,37.80769462]
[1731458653140,0.04888934,212.97,212.96,37.80769462]
[1731458654835,0.04888934,212.97,212.96,23.25074979]
[1731458655936,0.04888934,212.97,212.96,46.50149958]
[1731458657827,0.04888934,212.97,212.88,15.66771617]
[1731458658056,0.04888934,212.97,212.93,23.25074979]
[1731458658550,0.04888934,212.97,212.96,23.25074979]
[1731458659336,0.04888934,212.97,212.95,23.25074979]
[1731458659748,0.04888934,212.97,212.96,23.25074979]
[1731458660150,0.04888934,212.97,212.95,23.25074979]
[1731458660854,0.04888934,212.97,212.92,23.25074979]
[1731458661060,23.902374,212.96,212.88,23.25074979]
[1731458661250,23.25074979,212.95,212.88,23.25074979]
[1731458661644,23.776884,212.96,212.9,23.25074979]
[1731458661959,0.12549,212.95,212.9,23.25074979]
[1731458662152,0.12549,212.95,212.85,23.25074979]
[1731458662153,0.12549,212.95,212.93,23.25074979]
[1731458662359,0.04888934,212.97,212.93,23.25074979]
[1731458662663,0.04888934,212.97,212.85,23.25074979]
[1731458662664,0.04888934,212.97,212.92,23.25074979]
[1731458663251,23.29963913,212.97,212.9,23.25074979]
[1731458663457,23.37623979,212.95,212.88,23.25074979]
[1731458663642,0.12549,212.93,212.86,34.99554979]
[1731458663955,23.776884,212.96,212.89,23.25074979]
[1731458664160,23.29963913,212.97,212.91,23.25074979]
[1731458664560,0.12549,212.96,212.9,23.25074979]
[1731458664759,4.82119,212.96,212.9,23.25074979]
[1731458665160,4.82119,212.96,212.88,23.25074979]
[1731458665161,23.37623979,212.94,212.88,23.25074979]
[1731458665464,23.37623979,212.94,212.86,23.25074979]
[1731458665676,23.37623979,212.92,212.84,23.25074979]
[1731458665969,23.37623979,212.88,212.82,23.25074979]
[1731458666859,0.12549,212.86,212.8,23.25074979]
[1731458667042,23.37623979,212.86,212.79,23.25074979]
[1731458667247,0.12549,212.86,212.79,23.25074979]
[1731458667645,0.12549,212.86,212.8,23.25074979]
[1731458668065,47.15312379,212.86,212.79,23.25074979]
[1731458668246,0.12549,212.86,212.8,23.25074979]
[1731458668444,0.12549,212.86,212.77,16.4496]
[1731458668445,0.12549,212.86,212.81,23.25074979]
[1731458668644,0.12549,212.86,212.8,23.25074979]
[1731458668844,0.12549,212.87,212.8,23.25074979]
[1731458669042,0.12549,212.87,212.83,23.25074979]
[1731458669651,0.12549,212.89,212.83,23.25074979]
[1731458669844,0.12549,212.89,212.82,23.25074979]
[1731458670456,4.6972,212.9,212.84,23.25074979]
[1731458670662,23.776884,212.89,212.82,23.25074979]
[1731458671055,0.12549,212.88,212.82,23.25074979]
[1731458671258,23.25074979,212.87,212.79,23.25074979]
[1731458671453,0.12549,212.88,212.75,24.7001]
[1731458671454,23.37623979,212.88,212.8,23.25074979]
[1731458671647,0.12549,212.88,212.81,23.25074979]
[1731458672151,0.01357444,212.88,212.81,23.25074979]
[1731458672466,4.71097444,212.88,212.81,23.25074979]
[1731458672767,27.96172423,212.88,212.8,23.25074979]
[1731458672948,4.6974,212.88,212.82,23.25074979]
[1731458673147,4.6974,212.88,212.83,23.25074979]
[1731458673646,4.6974,212.88,212.82,23.25074979]
[1731458673861,4.6972,212.9,212.86,23.25074979]
[1731458674467,34.99084979,212.95,212.86,23.25074979]
[1731458674468,0.12549,212.92,212.86,23.25074979]
[1731458674666,0.12549,212.9,212.84,23.25074979]
[1731458674876,0.12549,212.88,212.8,23.25074979]
[1731458675550,23.25074979,212.85,212.79,23.25074979]
[1731458675748,23.25074979,212.87,212.8,23.25074979]
[1731458676250,0.12549,212.86,212.78,23.25074979]
[1731458676567,4.6983,212.84,212.77,23.25074979]
[1731458676776,4.6983,212.84,212.78,23.25074979]
[1731458676953,27.94874979,212.86,212.79,23.25074979]
[1731458677153,27.94874979,212.86,212.81,23.25074979]
[1731458677154,4.698,212.86,212.81,23.25074979]
[1731458677448,4.698,212.86,212.79,23.25074979]
[1731458677953,0.12549,212.85,212.79,23.25074979]
[1731458678154,4.6983,212.84,212.79,23.25074979]
[1731458678967,23.25074979,212.9,212.82,23.25074979]
[1731458679172,23.25074979,212.92,212.86,23.25074979]
[1731458679375,4.6963,212.93,212.88,23.25074979]
[1731458679544,4.6963,212.93,212.86,23.25074979]
[1731458679958,0.12549,212.92,212.86,23.25074979]
[1731458680450,4.6959,212.95,212.91,23.25074979]
[1731458681548,0.12549,212.94,212.87,23.25074979]
[1731458681749,23.25074979,212.91,212.83,23.25074979]
[1731458681969,0.12549,212.92,212.85,23.25074979]
[1731458682170,23.25074979,212.94,212.87,23.25074979]
[1731458682370,4.6959,212.95,212.89,23.25074979]
[1731458682546,39.61454979,212.98,212.91,23.25074979]
[1731458682862,11.14468934,212.97,212.91,23.25074979]
[1731458683060,11.14468934,212.97,212.89,23.25074979]
[1731458683446,11.14468934,212.97,212.91,23.25074979]
[1731458686662,0.04888934,212.97,212.93,23.25074979]
[1731458687602,0.04888934,212.97,212.96,23.25074979]
[1731458688867,0.04888934,212.97,212.96,27.94644979]
[1731458689076,0.04888934,212.97,212.96,51.19719958]
[1731458689262,0.04888934,212.97,212.96,51.2764268]
[1731458689459,0.04888934,212.97,212.96,71.35561263]
[1731458690358,0.04888934,212.97,212.96,71.2764268]
[1731458690557,0.04888934,212.97,212.96,71.35561263]
[1731458690981,0.04888934,212.97,212.96,71.2764268]
[1731458691274,0.12549,213.1,212.97,20.0]
[1731458691490,0.12549,213.1,213.05,23.25074979]
[1731458691692,4.6925,213.11,213.07,23.25074979]
[1731458692193,0.12549,213.1,213.07,23.25074979]
[1731458692780,0.12549,213.1,213.06,23.25074979]
[1731458692977,4.6925,213.11,213.07,23.25074979]
[1731458693168,6.4292,213.13,213.08,23.25074979]
[1731458693364,11.1212,213.13,213.09,23.25074979]
[1731458693687,4.692,213.13,213.09,23.25074979]
[1731458693873,4.692,213.13,213.08,23.25074979]
[1731458694364,4.692,213.13,213.01,11.81532722]
[1731458694365,4.692,213.13,213.09,23.25074979]
[1731458694571,4.692,213.13,213.08,23.25074979]
[1731458695475,23.25074979,213.16,213.08,23.25074979]
[1731458695476,4.81699,213.15,213.08,23.25074979]
[1731458696581,23.25074979,213.11,213.04,23.25074979]
[1731458696787,23.25074979,213.11,213.02,11.7359]
[1731458696788,0.12549,213.11,213.06,23.25074979]
[1731458696993,23.25074979,213.14,213.06,23.25074979]
[1731458697294,0.12549,213.12,213.06,23.25074979]
[1731458697477,4.6924,213.11,213.05,23.25074979]
[1731458697671,23.37623979,213.1,212.99,20.0]
[1731458697978,0.12549,213.1,213.05,23.25074979]
[1731458698703,0.12549,213.1,213.04,23.25074979]
[1731458698904,0.12549,213.08,213.02,23.25074979]
[1731458700006,4.6932,213.07,213.03,23.25074979]
[1731458700503,4.6929,213.09,213.06,23.25074979]
[1731458700693,23.25074979,213.12,213.04,23.25074979]
[1731458700884,23.25074979,213.1,213.02,23.25074979]
[1731458701084,0.12549,213.09,213.02,23.25074979]
[1731458701299,23.37623979,213.09,213.01,23.25074979]
[1731458701486,0.12549,213.06,212.99,23.25074979]
[1731458701686,0.12549,213.02,212.95,23.25074979]
[1731458701888,4.6942,213.03,212.99,23.25074979]
[1731458702196,20.1517,213.05,213.0,23.25074979]
[1731458703509,20.1517,213.05,212.98,23.25074979]
[1731458704190,4.6939,213.05,212.99,23.25074979]
[1731458704804,0.12549,213.02,212.96,23.25074979]
[1731458705112,0.12549,212.99,212.92,23.25074979]
[1731458705487,4.6952,212.98,212.93,23.25074979]
[1731458705893,23.37623979,212.97,212.9,23.25074979]
[1731458706207,0.12549,212.94,212.87,23.25074979]
[1731458706406,23.25074979,212.94,212.87,23.25074979]
[1731458706612,0.12549,212.95,212.89,23.25074979]
[1731458706820,4.6941,213.03,212.89,0.07922722]
[1731458707119,167.71912015,213.17,212.85,39.69404979]
[1731458707120,27.0291,213.11,213.02,23.25074979]
[1731458707415,4.6926,213.1,212.96,16.4349]
[1731458707595,0.12549,213.09,212.96,16.4349]
[1731458708409,0.12549,213.04,212.97,23.25074979]
[1731458709300,0.12549,213.02,212.97,23.25074979]
[1731458709491,0.12549,213.04,212.99,23.25074979]
[1731458709698,0.12549,213.06,213.02,23.25074979]
[1731458709889,49.44394979,213.11,213.03,23.25074979]
[1731458710094,21.5007,213.11,213.06,23.25074979]
[1731458710314,21.5007,213.11,213.08,23.25074979]
[1731458710900,21.5007,213.11,213.06,23.25074979]
[1731458711218,0.12549,213.1,213.03,23.25074979]
[1731458711520,0.12549,213.08,213.01,39.68134979]
[1731458711812,23.25074979,213.09,213.01,39.68134979]
[1731458712025,21.5007,213.11,213.07,23.25074979]
[1731458712491,0.12549,213.1,213.05,23.25074979]
[1731458712998,4.06442551,213.15,213.09,20.07922722]
[1731458713202,0.4622359,213.18,213.14,23.25074979]
[1731458713396,0.4622359,213.18,213.17,23.25074979]
[1731458713596,0.4622359,213.18,213.12,11.7301]
[1731458713997,23.37623979,213.17,213.09,23.25074979]
[1731458714501,0.12549,213.17,213.11,23.25074979]
[1731458715223,4.81659,213.17,213.11,23.25074979]
[1731458715395,0.12549,213.12,213.04,23.25074979]
[1731458715599,23.902374,213.12,213.06,23.25074979]
[1731458715903,23.902374,213.12,213.04,23.25074979]
[1731458716215,0.12549,213.1,213.02,23.25074979]
[1731458716602,0.12549,213.1,213.04,23.25074979]
[1731458716919,23.25074979,213.14,213.05,23.25074979]
[1731458717107,23.776884,213.13,213.05,23.25074979]
[1731458717312,0.12549,213.11,213.05,23.25074979]
[1731458717514,0.12549,213.07,212.98,23.25074979]
[1731458717697,23.902374,213.05,212.98,23.25074979]
[1731458718033,0.12549,213.05,212.98,23.25074979]
[1731458718323,0.12549,213.07,213.02,23.25074979]
[1731458718709,47.15312379,213.08,213.0,23.25074979]
[1731458719422,0.12549,213.05,213.0,23.25074979]
[1731458720426,0.12549,213.05,212.91,23.4832]
[1731458720427,0.12549,213.03,212.94,23.25074979]
[1731458720613,23.25074979,213.01,212.94,23.25074979]
[1731458720921,0.12549,213.0,212.96,23.25074979]
[1731458721132,23.776884,213.06,212.98,23.25074979]
[1731458721424,34.52764979,213.09,213.02,23.25074979]
[1731458721723,0.12549,213.07,213.0,23.25074979]
[1731458721909,23.37623979,213.05,212.98,23.25074979]
[1731458722107,23.37623979,213.03,212.96,23.25074979]
[1731458722308,0.12549,213.03,212.96,23.25074979]
[1731458722508,0.12549,213.03,212.98,23.25074979]
[1731458723114,23.009,213.09,212.93,16.4372]
[1731458723115,11.2769,213.09,213.01,23.25074979]
[1731458723319,11.2769,213.09,213.03,23.25074979]
[1731458723532,6.584,213.09,213.05,23.25074979]
[1731458725011,0.12549,213.08,213.05,23.25074979]
[1731458725215,0.12549,213.06,212.99,23.25074979]
[1731458725412,23.25074979,213.03,212.95,23.25074979]
[1731458725639,0.12549,213.02,212.95,23.25074979]
[1731458726419,0.12549,212.98,212.91,23.25074979]
[1731458726637,0.12549,212.98,212.93,23.25074979]
[1731458726807,23.25074979,212.97,212.91,23.25074979]
[1731458727012,0.12549,212.98,212.93,23.25074979]
[1731458727527,0.12549,212.98,212.91,23.25074979]
[1731458727528,0.12549,212.96,212.91,23.25074979]
[1731458728707,4.82069,212.98,212.91,23.25074979]
[1731458728927,0.12549,212.96,212.91,23.25074979]
[1731458729331,23.37623979,212.96,212.89,23.25074979]
[1731458729511,23.37623979,212.96,212.86,16.4426]
[1731458729512,0.12549,212.96,212.91,23.25074979]
[1731458729714,6.1758,212.97,212.94,23.25074979]
[1731458730618,6.1758,212.97,212.9,23.25074979]
[1731458730619,4.82119,212.96,212.9,23.25074979]
[1731458731111,0.12549,212.96,212.92,23.25074979]
[1731458731810,10.8714,212.97,212.88,4.6973]
[1731458731811,6.1758,212.97,212.94,23.25074979]
[1731458732010,6.1758,212.97,212.96,23.25074979]
[1731458732324,6.5655,213.02,212.96,23.25074979]
[1731458732505,11.2599,213.02,212.98,23.25074979]
[1731458732709,6.5655,213.02,212.98,23.25074979]
[1731458732920,6.0851,213.07,213.01,23.25074979]
[1731458733128,23.25074979,213.14,212.98,4.6952]
[1731458733129,6.0851,213.14,213.06,23.25074979]
[1731458733315,10.777,213.14,213.09,23.25074979]
[1731458733707,6.0851,213.14,213.01,0.15841305]
[1731458734131,0.12549,213.15,213.11,23.25074979]
[1731458734437,16.298,213.17,213.13,23.25074979]
[1731458734622,0.4622359,213.18,213.07,23.32993562]
[1731458734836,0.4622359,213.18,213.16,23.25074979]
[1731458735128,0.12549,213.17,213.12,23.25074979]
[1731458735713,0.12549,213.17,213.1,23.25074979]
[1731458735930,0.12549,213.17,213.13,23.25074979]
[1731458736108,0.4622359,213.18,213.15,23.25074979]
[1731458737331,0.4622359,213.18,213.17,23.25074979]
[1731458737526,0.12549,213.17,213.11,23.25074979]
[1731458737946,23.25074979,213.14,213.07,23.25074979]
[1731458738249,23.25074979,213.14,213.03,11.7351]
[1731458738250,0.12549,213.11,213.03,34.98584979]
[1731458738951,23.25074979,213.1,213.03,34.98584979]
[1731458739160,0.12549,213.09,213.03,23.25074979]
[1731458739646,0.12549,213.09,213.01,23.25074979]
[1731458739854,0.12549,213.09,213.02,23.25074979]
[1731458739855,23.25074979,213.09,213.02,23.25074979]
[1731458740033,39.529784,213.1,213.02,23.25074979]
[1731458740240,15.7529,213.1,213.04,23.25074979]
[1731458740558,0.12549,213.09,213.04,23.25074979]
[1731458741427,4.81839,213.09,213.02,23.25074979]
[1731458742040,4.81839,213.09,213.04,23.25074979]
[1731458742633,0.12549,213.09,213.04,23.25074979]
[1731458743830,15.7529,213.1,212.98,0.07918583]
[1731458744137,6.1869,213.13,213.08,23.25074979]
[1731458744333,23.25074979,213.12,213.04,34.98554979]
[1731458744541,23.37623979,213.12,213.04,34.98554979]
[1731458744752,23.37623979,213.12,213.04,39.67944979]
[1731458744954,23.37623979,213.12,213.04,34.98554979]
[1731458745260,0.12549,213.12,213.06,23.25074979]
[1731458746265,0.12549,213.11,213.06,23.25074979]
[1731458747351,6.1869,213.13,213.06,23.25074979]
[1731458747673,6.1869,213.13,213.09,23.25074979]
[1731458748035,6.1869,213.13,213.07,23.25074979]
[1731458748244,10.8789,213.13,213.07,23.25074979]
[1731458748434,23.25074979,213.17,213.09,23.25074979]
[1731458748641,27.94184979,213.17,213.07,23.25074979]
[1731458748844,0.12549,213.16,213.07,23.25074979]
[1731458749651,0.12549,213.14,213.07,23.25074979]
[1731458749866,0.12549,213.14,213.07,27.94394979]
[1731458750159,23.25074979,213.19,213.11,23.25074979]
[1731458750364,29.80344979,213.21,213.11,23.25074979]
[1731458750534,5.1531359,213.18,213.11,23.25074979]
[1731458750864,0.4622359,213.18,213.13,23.25074979]
[1731458751055,0.12549,213.17,213.13,23.25074979]
[1731458751853,0.4622359,213.18,213.11,27.94294979]
[1731458752171,0.4622359,213.18,213.11,39.67394979]
[1731458752363,0.4622359,213.18,213.13,23.25074979]
[1731458752744,0.12549,213.17,213.11,39.67394979]
[1731458753364,0.12549,213.17,213.11,34.98174979]
[1731458753872,0.12549,213.17,213.11,39.67414979]
[1731458754265,5.1532359,213.18,213.11,39.67414979]
[1731458754477,5.1532359,213.18,213.11,11.731]
[1731458754768,0.12549,213.17,213.11,11.731]
[1731458755278,0.12549,213.17,213.1,4.6925]
[1731458755279,0.12549,213.17,213.09,23.25074979]
[1731458755462,23.37623979,213.17,213.09,27.94354979]
[1731458755659,0.4622359,213.18,213.09,16.4249]
[1731458755971,0.4622359,213.18,213.16,4.6913]
[1731458756872,0.4622359,213.18,213.17,23.25074979]
[1731458759051,0.12549,213.17,213.15,23.25074979]
[1731458759257,0.4622359,213.18,213.15,23.25074979]
[1731458759464,0.4622359,213.18,213.17,23.25074979]
[1731458760079,0.4622359,213.18,213.15,39.67104979]
[1731458760371,0.4622359,213.18,213.17,23.25074979]
[1731458760971,0.12549,213.17,213.14,23.25074979]
[1731458761275,0.12549,213.17,213.12,23.25074979]
[1731458761574,5.1531359,213.18,213.11,16.423]
[1731458761575,0.4622359,213.18,213.16,23.25074979]
[1731458761965,0.12549,213.17,213.14,23.25074979]
[1731458762161,0.12549,213.17,213.11,11.7308]
[1731458762373,0.12549,213.17,213.1,23.25074979]
[1731458762560,0.12549,213.17,213.08,23.25074979]
[1731458762561,0.12549,213.15,213.08,23.25074979]
[1731458762764,28.40388569,213.18,213.1,23.25074979]
[1731458762995,0.4622359,213.18,213.12,23.25074979]
[1731458763163,0.12549,213.17,213.14,23.25074979]
[1731458763362,0.12549,213.17,213.12,23.25074979]
[1731458763565,0.12549,213.17,213.1,23.25074979]
[1731458763963,0.12549,213.15,213.1,23.25074979]
[1731458764167,0.12549,213.16,213.1,27.94314979]
[1731458764585,0.4622359,213.18,213.14,23.25074979]
[1731458764763,0.4622359,213.18,213.16,23.25074979]
[1731458766081,0.4622359,213.18,213.17,4.691]
[1731458767898,0.4622359,213.18,213.16,23.25074979]
[1731458768099,0.4622359,213.18,213.14,23.25074979]
[1731458768305,0.4622359,213.18,213.16,23.25074979]
[1731458769186,0.4622359,213.18,213.17,23.25074979]
[1731458770091,0.4622359,213.18,213.15,23.25074979]
[1731458770298,5.1531359,213.18,213.13,23.25074979]
[1731458770797,0.12549,213.17,213.13,23.25074979]
[1731458770990,0.12549,213.17,213.11,23.25074979]
[1731458771674,0.12549,213.17,213.08,11.7325]
[1731458771675,0.12549,213.17,213.13,23.25074979]
[1731458771882,4.6913,213.16,213.11,23.25074979]
[1731458772605,0.12549,213.15,213.11,23.25074979]
[1731458772782,4.6913,213.16,213.13,23.25074979]
[1731458774499,5.1531359,213.18,213.13,23.25074979]
[1731458774999,0.4622359,213.18,213.16,23.25074979]
[1731458775380,0.4622359,213.18,213.14,23.25074979]
[1731458775695,5.1531359,213.18,213.14,23.25074979]
[1731458775893,0.4622359,213.18,213.14,23.25074979]
[1731458776081,0.4622359,213.18,213.16,23.25074979]
[1731458777086,5.1532359,213.18,213.12,23.25074979]
[1731458778805,0.4622359,213.18,213.16,23.25074979]
[1731458778991,0.4622359,213.18,213.17,23.25074979]
[1731458780813,0.4622359,213.18,213.15,23.25074979]
[1731458781304,5.1531359,213.18,213.11,23.25074979]
[1731458782107,0.12549,213.15,213.09,23.25074979]
[1731458782612,0.12549,213.13,213.07,23.25074979]
[1731458782802,0.12549,213.14,213.09,23.25074979]
[1731458783006,0.12549,213.14,213.1,23.25074979]
[1731458783192,4.6919,213.13,213.08,23.25074979]
[1731458783506,0.12549,213.12,213.06,23.25074979]
[1731458783713,23.37623979,213.12,213.04,23.25074979]
[1731458785114,23.25074979,213.12,213.04,27.94454979]
[1731458785313,4.6921,213.13,213.06,23.25074979]
[1731458785611,4.6921,213.13,213.04,16.4286]
[1731458785612,23.37623979,213.12,213.04,34.98554979]
[1731458786001,23.37623979,213.12,213.02,4.6943]
[1731458786002,0.12549,213.09,213.02,23.25074979]
[1731458786197,23.37623979,213.09,213.02,23.25074979]
[1731458786700,23.37623979,213.09,212.95,0.07922722]
[1731458786701,20.0,213.06,212.95,11.7397]
[1731458786897,4.6937,213.05,212.99,23.25074979]
[1731458787092,23.25074979,213.1,213.02,23.25074979]
[1731458787515,0.12549,213.09,213.02,23.25074979]
[1731458787816,0.12549,213.09,213.03,23.25074979]
[1731458788116,0.12549,213.09,213.01,23.25074979]
[1731458788295,23.25074979,213.08,213.01,23.25074979]
[1731458788619,23.776884,213.09,212.97,4.6953]
[1731458788818,23.25074979,213.07,212.99,23.25074979]
[1731458789021,23.25074979,213.09,213.02,23.25074979]
[1731458789321,4.6926,213.1,213.03,23.25074979]
[1731458789697,23.25074979,213.14,213.06,23.25074979]
[1731458789898,0.4622359,213.18,213.12,23.25074979]
[1731458790132,23.71298569,213.18,213.12,23.25074979]
[1731458790295,26.5121,213.15,213.1,23.25074979]
[1731458790501,23.25074979,213.12,212.97,16.434]
[1731458790714,23.37623979,213.07,212.99,23.25074979]
[1731458790926,23.25074979,213.03,212.95,23.25074979]
[1731458791116,23.25074979,213.01,212.93,27.94694979]
[1731458791303,4.6943,213.02,212.95,23.25074979]
[1731458791509,4.6943,213.02,212.94,23.25074979]
[1731458791510,0.12549,213.01,212.94,23.25074979]
[1731458791703,0.12549,212.99,212.93,23.25074979]
[1731458792024,23.25074979,212.96,212.89,23.25074979]
[1731458792218,0.12549,212.93,212.85,23.25074979]
[1731458792427,23.25074979,212.92,212.85,23.25074979]
[1731458792604,23.25074979,212.94,212.87,23.25074979]
[1731458793106,27.94694979,212.94,212.87,23.25074979]
[1731458793300,0.12549,212.95,212.87,27.94834979]
[1731458793503,23.25074979,212.96,212.87,27.94834979]
[1731458793727,23.776884,212.99,212.93,23.25074979]
[1731458794028,0.12549,213.01,212.96,23.25074979]
[1731458794528,0.12549,213.01,212.95,23.25074979]
[1731458794724,0.12549,213.02,212.95,23.25074979]
[1731458795024,4.6946,213.01,212.95,23.25074979]
[1731458795318,0.12549,213.0,212.95,23.25074979]
[1731458795521,27.94494979,213.03,212.95,23.25074979]
[1731458795708,4.6942,213.03,212.97,23.25074979]
[1731458796405,23.902374,213.02,212.95,23.25074979]
[1731458796902,23.902374,213.02,212.92,16.4379]
[1731458796903,0.12549,213.02,212.97,23.25074979]
[1731458797232,22.3447,213.04,212.99,23.25074979]
[1731458797419,0.12549,213.03,212.99,23.25074979]
[1731458798409,47.15312379,213.03,212.95,23.25074979]
[1731458799524,0.12549,213.03,212.99,23.25074979]
[1731458800028,11.0086,213.04,212.99,23.25074979]
[1731458800244,0.12549,213.03,212.97,23.25074979]
[1731458800410,6.3145,213.04,212.99,23.25074979]
[1731458800619,4.6932,213.08,213.01,23.25074979]
[1731458801225,23.37623979,213.07,212.99,23.25074979]
[1731458801428,4.81939,213.04,212.97,23.25074979]
[1731458801629,0.12549,213.02,212.95,23.25074979]
[1731458802122,0.12549,213.03,212.97,23.25074979]
[1731458802323,23.25074979,213.05,212.93,16.4371]
[1731458802324,4.6932,213.08,213.01,23.25074979]
[1731458803119,47.02763379,213.07,212.99,23.25074979]
[1731458803308,23.25074979,213.01,212.91,27.94734979]
[1731458803508,23.25074979,212.94,212.87,23.25074979]
[1731458803715,23.25074979,212.94,212.85,23.25074979]
[1731458804015,23.25074979,212.9,212.84,11.7456]
[1731458804217,23.25074979,212.9,212.83,23.25074979]
[1731458804915,23.25074979,212.9,212.82,4.6986]
[1731458804916,23.25074979,212.9,212.81,23.25074979]